Cogmind - Beta 17 @@@ ROGUE MODE // 2026.08.01 @ 17:29:01 Player: 50l Result: Destroyed by H-66 Slayer with Gauss Rifle Performance ------------- Evolutions (5) 2500 Regions Visited (5) 1000 Robots Destroyed (40) 200 Value Destroyed (1077) 1077 Prototype IDs (28) 560 Alien Tech Used (0) 0 Bonus (800) 800 TOTAL SCORE: 6137 Bonus ------- Registered with UFD 300 Met Optimus in HQ 500 Cogmind --------- Core Integrity 0/1000 Matter 166/300 Energy 99/100 System Corruption 3% Temperature Cool (0) Movement Core (50) Location -5/Factory Parts ------- > --- POWER (1) -------- (None) > --- PROPULSION (5) --- (None) > --- UTILITY (9) ------ Advanced Weight Redist. System Advanced Signal Interpreter Advanced Melee Analysis Suite Hacking Suite > --- WEAPON (2) ------- (None) > --- INVENTORY (5) ---- Advanced Cooling System Improved Reaction Control System Advanced Hacking Suite A0-MCA's Component Scanner Great Axe Peak State ------------ > --- POWER ------------ Light Neutrino Core > --- PROPULSION ------- Flight Unit Flight Unit Xenon Bombardment Thruster > --- UTILITY ---------- Medium Storage Unit Improved Sensor Array Advanced Signal Interpreter Advanced Melee Analysis Suite Advanced Melee Analysis Suite Advanced Melee Analysis Suite Hacking Suite System Shield > --- WEAPON ----------- Datajack Makeshift Sword > --- INVENTORY -------- Light Fission Core Light Fission Core Advanced Cooling System Advanced Terrain Scanner Advanced Terrain Scan Processor Transmission Jammer Advanced ECM Suite Improved Light Armor Plating A0-MCA's Component Scanner CPS Tube [Rating: 52] Favorites ----------- Power Light Neutrino Core Engine Light Ion Engine Power Core Light Neutrino Core Propulsion Flight Unit Treads Improved Treads Wheel Subdweller Monowheel Flight Unit Flight Unit Utility Advanced Melee Analysis Suite Device Subdweller Optics Storage Large Storage Unit Processor Advanced Melee Analysis Suite Hackware Hacking Suite Protection Hardened Light Armor Plating Weapon Datajack Energy Gun Subdweller Laser Energy Cannon Particle Cannon Ballistic Gun Assault Rifle Launcher Grenade Launcher Slashing Weapon Makeshift Sword Piercing Weapon Makeshift Spear Special Melee Weapon Datajack Build | -11 -10 -10 -7 -7 -5 ------- Run | Yrd Mat Sub Rec Scr Fac Slots Evolved 10 | . . . . . 10 Power . | . . . . . . Propulsion 3 | . . . . . 3 Utility 7 | . . . . . 7 Weapon . | . . . . . . Parts Attached 53 | 6 6 18 2 2 19 Power 3 | . . 2 . . 1 Engine 2 | . . 2 . . . Core 1 | . . . . . 1 Reactor . | . . . . . . Propulsion 11 | 2 2 4 . . 3 Treads 5 | 2 2 1 . . . Leg . | . . . . . . Wheel 1 | . . 1 . . . Hover . | . . . . . . Flight 5 | . . 2 . . 3 Utility 24 | 2 2 5 2 1 12 Device 7 | 1 . 2 . . 4 Storage 5 | 1 1 1 1 1 . Processor 5 | . . 1 . . 4 Hackware 2 | . . . 1 . 1 Protection 5 | . 1 1 . . 3 Artifact . | . . . . . . Weapon 15 | 2 2 7 . 1 3 Energy Gun 1 | . . 1 . . . Energy Cannon 1 | . 1 . . . . Ballistic Gun 5 | 2 . 3 . . . Ballistic Cannon . | . . . . . . Launcher 1 | . 1 . . . . Special Weapon . | . . . . . . Impact Weapon . | . . . . . . Slashing Weapon 5 | . . 1 . 1 3 Piercing Weapon 1 | . . 1 . . . Special Melee Weapon 1 | . . 1 . . . Unidentified Prototypes 1 | . . . . . 1 Parts Lost 25 | . . 7 . . 18 Power 3 | . . 2 . . 1 Propulsion 6 | . . 1 . . 5 Utility 9 | . . 1 . . 8 Weapon 7 | . . 3 . . 4 Highest Loss Streak 13 | . . 5 . . 13 To Critical Strikes 1 | . . . . . 1 Average Backups 6 | 3 13 5 3 5 6 Power . | 1 2 . . . . Propulsion 1 | 1 4 1 . 1 . Utility 3 | . 3 2 2 3 4 Weapon . | . 2 . . . . Tool/Special . | . . . . . . Unused Backups 26 | . 3 12 . . 11 Power 4 | . . 2 . . 2 Propulsion 6 | . 1 5 . . . Utility 11 | . 1 3 . . 7 Weapon 4 | . 1 2 . . 1 Tool/Special 1 | . . . . . 1 Average Slot Usage (%) 78 | . 85 85 75 76 61 Treads 7 | . 28 4 . . . Flight 15 | . . 21 28 28 8 Device 13 | . 12 21 5 . 9 Storage 5 | . 14 3 . 5 1 Processor 4 | . . . . . 19 Hackware 4 | . . . 12 14 10 Protection 1 | . 1 3 . . 1 Energy Cannon 1 | . 7 . . . . Ballistic Gun 5 | . 20 3 . . . Slashing Weapon 1 | . . . . 10 2 Piercing Weapon 5 | . . 10 14 3 . Special Melee Weapon 7 | . . 10 14 14 1 Peak Build Rating 52 | 6 12 19 13 14 52 Average Rating 17 | 4 8 13 11 12 40 On Entrance 9 | . 6 12 12 11 14 Avg Prop Armor Cover (%) 10 | . . 10 . . . Naked Turns . | . . . . . . Heaviest Build 96 | 10 32 96 6 13 22 Greatest Support 46 | 40 46 46 8 8 14 Greatest Overweight (x) 5 | 1 . 4 . 1 5 Average Overweight (x) . | . . . . . . Largest Inventory Capacity 25 | 8 15 25 5 10 10 Average Capacity 9 | 7 14 8 5 6 6 Most Carried 25 | 6 15 25 4 8 10 Average Carried 7 | 3 13 5 3 5 6 Final Capacity 15 | 8 15 5 5 10 5 Final Carried 15 | 6 15 1 4 8 5 Class Distribution -------------------- 49% | Scavenger-Mutant 31% | Mutant 19% | Hacker-Mutant Dominant Class ---------------- Mutant | -10/Materials Scavenger-Mutant | -10/Subcaves Scavenger-Mutant | -7/Recycling Scavenger-Mutant | -7/Scraptown Hacker-Mutant | -5/Factory Resources | -11 -10 -10 -7 -7 -5 ----------- Run | Yrd Mat Sub Rec Scr Fac Matter Collected 960 | 314 352 241 20 10 23 Remotely . | . . . . . . Salvage Created 1196 | 79 586 429 . . 102 Parts 78 | 6 45 23 . . 4 Haulers Intercepted . | . . . . . . Recyclers Shooed . | . . . . . . Parts Field Recycled . | . . . . . . Retrieved Matter . | . . . . . . Parts Self-Destructed 7 | . . 7 . . . Prevented . | . . . . . . Parts Restored . | . . . . . . Kills | -11 -10 -10 -7 -7 -5 ------- Run | Yrd Mat Sub Rec Scr Fac Combat Hostiles Destroyed 31 | . 16 11 . . 4 Melee 4 | . . . . . 4 Guns 18 | . 8 10 . . . Cannons 4 | . 3 1 . . . AOE 5 | . 5 . . . . Classes Destroyed 9 | 2 5 2 . . . Worker 2 | . 2 . . . . Tunneler 1 | 1 . . . . . Recycler 1 | 1 . . . . . Operator 2 | . 2 . . . . Watcher 3 | . 3 . . . . Swarmer 11 | . 6 1 . . 4 Grunt 10 | . 10 . . . . Sentry 1 | . . 1 . . . Subdweller 9 | . . 9 . . . Best Kill Streak 4 | 2 4 2 . . 3 Combat Bots Only 3 | . 3 2 . . 3 Max Kills in Single Turn 3 | 1 3 1 . . 1 Gunslinging . | . . . . . . Exploded 2 | . 2 . . . . Melee 1 | . . . . . 1 Uniques/NPCs Destroyed . | . . . . . . Combat | -11 -10 -10 -7 -7 -5 -------- Run | Yrd Mat Sub Rec Scr Fac Hostile Shots Fired 313 | . 61 64 9 . 179 Missed 98 | . 15 15 6 . 62 Hits 215 | . 46 49 3 . 117 Projectile 215 | . 46 49 3 . 117 AOE 6 | . . 4 . . 2 Critical Strikes 3 | . . 1 . . 2 Damage Taken 3817 | . 534 1101 15 . 2167 Core 1247 | . 55 191 . . 1001 Absorbed by Shields . | . . . . . . Core Remaining (%) 50 | 100 . . . 1 . Volleys Fired 110 | 9 55 46 . . . Largest 2 | 2 2 2 . . . Hottest 98 | 40 98 98 . . . Shots Fired 195 | 18 107 70 . . . Gun 147 | 18 78 51 . . . Cannon 44 | . 25 19 . . . Launcher 4 | . 4 . . . . Special . | . . . . . . Kinetic 130 | 18 78 34 . . . Thermal 61 | . 25 36 . . . Explosive 4 | . 4 . . . . Electromagnetic . | . . . . . . Robot Hit Streak 18 | 4 18 12 . . . Robot Miss Streak 5 | 2 5 4 . . . Penetration Max . | . . . . . . Secondary Targets 2 | . 2 . . . . Max Gunslinging Chain 1 | . 1 . . . . Shots Hit Robots 150 | 10 68 55 . 2 15 Core Hits 64 | 3 36 21 . . 4 Critical Kills 1 | . . 1 . . . Critical Parts Destroyed . | . . . . . . Critical Strikes 3 | . . 1 . . 2 Destroy 1 | . . 1 . . . Sever 2 | . . . . . 2 Melee Attacks 33 | . . 11 3 2 17 Impact . | . . . . . . Slashing 17 | . . . . . 17 Piercing 13 | . . 10 3 . . Sneak Attacks 2 | . . . . 2 . Combat Hostiles . | . . . . . . Follow-up Attacks . | . . . . . . Damage Inflicted 3118 | 126 1279 1089 . . 624 Guns 1527 | 126 635 766 . . . Cannons 671 | . 348 323 . . . Explosions 296 | . 296 . . . . Melee 624 | . . . . . 624 Ramming . | . . . . . . Kinetic 1256 | 126 635 495 . . . Thermal 942 | . 348 594 . . . Explosive 296 | . 296 . . . . Electromagnetic . | . . . . . . Impact . | . . . . . . Slashing 624 | . . . . . 624 Piercing . | . . . . . . Highest Corruption 3 | . . . . . 3 Average Corruption 1 | . . . . . 1 Corruption Purged . | . . . . . . Corruption Blocked . | . . . . . . Effects 4 | . . . . . 4 Message Errors 1 | . . . . . 1 Matter Fused 2 | . . . . . 2 Energy Discharges 1 | . . . . . 1 Overload Shots . | . . . . . . Overflow Damage 53 | . 15 . . . 38 Projectiles 15 | . 15 . . . . Explosions . | . . . . . . Melee 38 | . . . . . 38 Knockbacks . | . . . . . . Impact . | . . . . . . Kinetic . | . . . . . . Secondary . | . . . . . . Self-Inflicted Damage 15 | . 15 . . . . Shots 1 | . 1 . . . . Rammed . | . . . . . . Targets Rammed . | . . . . . . Kicked . | . . . . . . Crushed . | . . . . . . Highest Temperature 105 | . 105 3 . . . Average Temperature 31 | . 32 3 . . . Received Heat Transfer 477 | . 234 147 . . 96 Siege Activations . | . . . . . . Martial Activations . | . . . . . . Shielding Activations . | . . . . . . Robots Disrupted . | . . . . . . Combat Hostiles . | . . . . . . Robots Corrupted . | . . . . . . Combat Hostiles . | . . . . . . Parts Fried . | . . . . . . Impact Corruptions . | . . . . . . Robots Melted . | . . . . . . Combat Hostiles . | . . . . . . Parts Melted 1 | . . 1 . . . Heat Transferred 1546 | . 629 917 . . . Parts Sabotaged . | . . . . . . Parts Stolen . | . . . . . . Parts Stripped . | . . . . . . Power Chain Reactions . | . . . . . . Alert | -11 -10 -10 -7 -7 -5 ------- Run | Yrd Mat Sub Rec Scr Fac Maximum Alert Level . | . . . . . . Low Security (%) 100 | 100 100 . 100 . 100 Level 1 . | . . . . . . Level 2 . | . . . . . . Level 3 . | . . . . . . Level 4 . | . . . . . . Level 5 . | . . . . . . High Security . | . . . . . . Max Security . | . . . . . . Peak Influence 193 | 5 193 . 95 . 92 Initial . | . . . . . . Average 53 | . 94 . 43 . 22 Influence Increases 1070 | 10 503 40 168 . 349 Destroy 0b10 Robot/C 440 | . 320 40 . . 80 Destroy 0b10 Robot/NC 45 | 10 35 . . . . Destroy Leader 66 | . 66 . . . . Successful Hack 156 | . 22 . 30 . 104 Select Force Hacks 120 | . . . 120 . . Disable Machine 30 | . 15 . . . 15 Destroy Structure 33 | . 30 . 3 . . Partial Spotted 60 | . . . . . 60 Lose Combat Pursuer 120 | . 15 . 15 . 90 Influence Decreases 1055 | 10 379 164 162 6 334 Entered New Map 66 | . . 60 . 6 . Time Decay 885 | 10 379 94 162 . 240 Lost Part 104 | . . 10 . . 94 Squads Dispatched 8 | . 2 . . . 6 Investigation 1 | . . . . . 1 Extermination 4 | . . . . . 4 Reinforcement 3 | . 2 . . . 1 Assault . | . . . . . . Garrison . | . . . . . . Intercept . | . . . . . . Searches Triggered . | . . . . . . Construction Impeded . | . . . . . . Haulers Reinforced . | . . . . . . Active Scanning Responses . | . . . . . . Cargo Convoy Interrupts . | . . . . . . Stealth | -11 -10 -10 -7 -7 -5 --------- Run | Yrd Mat Sub Rec Scr Fac Distress Signals 1 | . . . . . 1 Communications Jammed . | . . . . . . Distress Signals . | . . . . . . Times Spotted 76 | . 28 14 1 . 33 Peak Tracking Total 7 | . 4 3 1 . 7 Tactical Retreats 13 | . 1 1 1 . 10 ECM-based Alert Blocks 15 | . . . . . 15 Traps | -11 -10 -10 -7 -7 -5 ------- Run | Yrd Mat Sub Rec Scr Fac Traps Triggered 1 | . . . . . 1 Indirectly . | . . . . . . Trap Hack Attempts . | . . . . . . Triggered . | . . . . . . Disarmed . | . . . . . . Reprogrammed . | . . . . . . Reused . | . . . . . . Traps Extracted . | . . . . . . Installed . | . . . . . . Triggered . | . . . . . . Machines | -11 -10 -10 -7 -7 -5 ---------- Run | Yrd Mat Sub Rec Scr Fac Machines Disabled 3 | . 1 1 . . 1 Max in Single Turn 1 | . 1 1 . . 1 Garrison Access 1 | . . . . . 1 Machines Repaired . | . . . . . . Machines Dismantled . | . . . . . . Machines Sabotaged . | . . . . . . Overloaded Fab Kills . | . . . . . . Hacking | -11 -10 -10 -7 -7 -5 --------- Run | Yrd Mat Sub Rec Scr Fac Machines Accessed 34 | . 5 1 12 6 10 Terminals 20 | . 5 . 6 . 9 Fabricators . | . . . . . . Repair Stations . | . . . . . . Recycling Units 4 | . . . 4 . . Scanalyzers . | . . . . . . Garrison Access 1 | . . . . . 1 Total Hacks 118 | . 17 3 38 26 34 Successful 81 | . 9 3 27 26 16 Failed 36 | . 7 . 11 . 18 Catastrophic 2 | . . . . . 2 Database Lockouts 1 | . 1 . . . . Manual 63 | . 17 . 26 . 20 Terminals 74 | . 17 . 25 . 32 Fabricators . | . . . . . . Repair Stations . | . . . . . . Recycling Units 11 | . . . 11 . . Scanalyzers . | . . . . . . Garrison Access 2 | . . . . . 2 Terminal Hacks 45 | . 1 3 8 26 7 Record 29 | . . 2 2 25 . Part Schematic 1 | . . . . . 1 Robot Schematic 2 | . . . . . 2 Robot Analysis 5 | . 1 . 2 . 2 Prototype ID Bank 1 | . . . 1 . . Emergency Access Points 1 | . . . . . 1 Terminal Index 2 | . . . 1 . 1 Alert Level 1 | . . . 1 . . Registered Prototypes 1 | . . . 1 . . Proto ID Catalog 2 | . . 1 . 1 . Fabricator Hacks . | . . . . . . Repair Station Hacks . | . . . . . . Recycling Unit Hacks 5 | . . . 5 . . Report Inventory 4 | . . . 4 . . Retrieve Components 1 | . . . 1 . . Scanalyzer . | . . . . . . Garrison Access Hacks 1 | . . . . . 1 Seal Access 1 | . . . . . 1 Unauthorized Hacks 30 | . 8 . 14 . 8 Terminals 26 | . 8 . 10 . 8 Botnet 16 | . 4 . 5 . 7 Operators 1 | . . . . . 1 Skim 9 | . 4 . 5 . . Fabricators . | . . . . . . Repair Stations . | . . . . . . Recycling Units 4 | . . . 4 . . Tunnel 4 | . . . 4 . . Scanalyzers . | . . . . . . Garrison Access . | . . . . . . Data Cores Recovered . | . . . . . . Used . | . . . . . . Hacking Detections 22 | . 5 . 7 . 10 Full Trace Events 2 | . . . 1 . 1 Feedback Events . | . . . . . . Feedback Blocked . | . . . . . . Robot Schematics Acquired 2 | . . . . . 2 Robots Built . | . . . . . . Authchips . | . . . . . . Time . | . . . . . . Total Robot Build Rating . | . . . . . . Part Schematics Acquired 1 | . . . . . 1 Parts Built . | . . . . . . Authchips . | . . . . . . Time . | . . . . . . Total Part Build Rating . | . . . . . . Part Studies Acquired . | . . . . . . Parts Repaired . | . . . . . . Time . | . . . . . . Parts Recycled . | . . . . . . Recycled Matter . | . . . . . . Retrieved Matter . | . . . . . . Retrieved Components 3 | . . . 3 . . Parts Scanalyzed . | . . . . . . Part Schematics Acquired . | . . . . . . Parts Damaged . | . . . . . . Bothacking | -11 -10 -10 -7 -7 -5 ------------ Run | Yrd Mat Sub Rec Scr Fac Used RIF Installer . | . . . . . . Robots Hacked 2 | . . . . 2 . Non-combat . | . . . . . . Combat 2 | . . . . 2 . Robot Hacks Applied 2 | . . . . 2 . parse_system 2 | . . . . 2 . Relay Couplers Released . | . . . . . . Fabnet Peak Effective % . | . . . . . . Robots Rewired . | . . . . . . Allies Hacked . | . . . . . . Hacks Repelled . | . . . . . . Allies | -11 -10 -10 -7 -7 -5 -------- Run | Yrd Mat Sub Rec Scr Fac Total Allies . | . . . . . . Largest Group . | . . . . . . Highest-Rated Group . | . . . . . . Highest-Rated Ally . | . . . . . . Initial UFD Resources 38 | . . . . . 38 Total Orders . | . . . . . . Ally Attacks . | . . . . . . Total Damage . | . . . . . . Kills . | . . . . . . Allies Corrupted . | . . . . . . Allies Melted . | . . . . . . Intel | -11 -10 -10 -7 -7 -5 ------- Run | Yrd Mat Sub Rec Scr Fac Active Infowar (turns) 4636 | 20 1251 2017 18 . 1330 Optics 17 | . . 17 . . . Sensors 1330 | . . . . . 1330 Terrain 2018 | . . 2000 18 . . Seismic 1271 | 20 1251 . . . . ECM 175 | . . . . . 175 Robot Analysis Total 5 | . 1 . 2 . 2 Derelict Logs Recovered 1 | . . 1 . . . Drone Launches . | . . . . . . Drone Recoveries . | . . . . . . Exploration | -11 -10 -10 -7 -7 -5 ------------- Run | Yrd Mat Sub Rec Scr Fac Turns Passed 7366 | 122 1442 2990 342 918 1552 Spaces Moved 6573 | 55 724 1104 615 1814 2261 Core 245 | 9 . . . . 236 Treads 845 | 46 724 75 . . . Legs . | . . . . . . Wheels 238 | . . 238 . . . Hover . | . . . . . . Flight 5245 | . . 791 615 1814 2025 Fastest Speed 32 | 50 160 37 37 37 32 Average Speed 62 | 147 160 69 37 49 42 Slowest Speed 300 | 160 160 240 37 117 300 Overloaded Moves . | . . . . . . Propulsion Burnouts . | . . . . . . Robots Hopped 45 | . . . 3 5 37 Potential Cave-ins . | . . . . . . Cave-ins Triggered . | . . . . . . Exploration Rate (%) 64 | 3 94 58 97 91 45 Regions Visited 5 Branch Regions 3 Pre-discovered Areas 4 | . . . 4 . . Known Exits Taken . | . . . . . . Unknown Exits Taken 5 | 1 1 1 1 1 . Scrap Searched 11 | . . 7 . 4 . Spaces Dug 5 | . . 2 3 . . Terrain Destroyed 34 | . 29 2 3 . . Melee 5 | . . 2 3 . . Projectile . | . . . . . . AOE 29 | . 29 . . . . Terrain Rammed . | . . . . . . Walls Destroyed . | . . . . . . Machines Disabled . | . . . . . . Actions | -11 -10 -10 -7 -7 -5 --------- Run | Yrd Mat Sub Rec Scr Fac Total 9560 | 75 900 3250 722 1821 2792 Wait 2716 | . 93 2028 101 2 492 Move 6481 | 54 723 1103 609 1805 2187 Hop 42 | . . . 2 3 37 Pick Up 51 | 6 12 15 3 5 10 Fast Attach 29 | 6 2 6 1 2 12 Attach 19 | . . 10 . . 9 Detach 5 | . . 1 . . 4 Swap 11 | . 7 2 1 . 1 Drop 49 | . 8 28 2 2 9 Fire 110 | 9 55 46 . . . Melee 32 | . . 11 3 2 16 Ram . | . . . . . . Kick . | . . . . . . Crush . | . . . . . . Escape Stasis 15 | . . . . . 15 Rewire . | . . . . . . Trap . | . . . . . . Miscellaneous . | . . . . . . Route ------- -11/Scrapyard -10/Materials (discovered 6 exits: [*Mat x3] / [*Min x2] / *Sub) -10/Subcaves (discovered 3 exits: [*Mat x2] / *Rec) -7/Recycling (discovered 2 exits: *Fac / *Scr) -7/Scraptown (discovered 2 exits: *Fac x2) -5/Factory (discovered 1 exit: [*Upp]) History --------- Turn | Location | Event 19 | -11/Scrapyard | Discovered new exit (range 14) 123 | -11/Scrapyard | Entered Materials 309 | -10/Materials | Build established: Mutant 384 | -10/Materials | Discovered new exit (range 13) 702 | -10/Materials | Discovered new exit (range 11) 720 | -10/Materials | Discovered new exit (range 11) 957 | -10/Materials | Discovered new exit (range 8) 972 | -10/Materials | Discovered new exit (range 6) 1022 | -10/Materials | Discovered new exit (range 16) 1036 | -10/Materials | Central database locked down 1565 | -10/Materials | Entered Subcaves 1725 | -10/Subcaves | A Subdweller sparked back to life 1744 | -10/Subcaves | Core integrity fell below 50% 1782 | -10/Subcaves | Found Prototype Wheel 1791 | -10/Subcaves | Lost 5 parts (1p1n1u2w) 1846 | -10/Subcaves | Core integrity fell below 20% 1977 | -10/Subcaves | Discovered new exit (range 5) 2053 | -10/Subcaves | A swath of the cavern ceiling suddenly collapsed 2399 | -10/Subcaves | Learned Materials emergency access door positions 2479 | -10/Subcaves | Visited 4L-MR0's lab 2479 | -10/Subcaves | Identified Maxwheels 2504 | -10/Subcaves | Build established: Scavenger-Mutant 2521 | -10/Subcaves | Discovered new exit (range 5) 2527 | -10/Subcaves | Ambushed by Subdwellers from Twisted Machinery 2556 | -10/Subcaves | Shifting Twisted Machinery released Sub. Optics 4553 | -10/Subcaves | Discovered new exit (range 3) 4555 | -10/Subcaves | Entered Recycling 4723 | -7/Recycling | Scanned before Scraplab entrance 4730 | -7/Recycling | Discovered new exit (range 16) 4841 | -7/Recycling | Entered Scraplab 4861 | -7/Recycling | Discovered new exit (range 2) 4897 | -7/Recycling | Entered Scraptown 4958 | -7/Scraptown | Discovered new exit (range 13) 4996 | -7/Scraptown | Visited Cave Peace 5008 | -7/Scraptown | Visited Fellowship of the Rings 5017 | -7/Scraptown | Visited Assassins FH 5020 | -7/Scraptown | Heard Great Nut preacher, LISTEN AND RECITE! 5021 | -7/Scraptown | Visited CR-KLE's Repair Center 5028 | -7/Scraptown | Visited The Evicted 5045 | -7/Scraptown | Visited Cyclists 5056 | -7/Scraptown | Received an X-ray algorithm 5058 | -7/Scraptown | Visited Comm Corps 5141 | -7/Scraptown | Visited UFD Registry 5141 | -7/Scraptown | Registered with UFD as "Nutroller" 5155 | -7/Scraptown | Entered Cyclist Reading Room 5191 | -7/Scraptown | Visited Scrap Suit Storage 5201 | -7/Scraptown | Visited Science Guys 5213 | -7/Scraptown | Visited Supply Room 5275 | -7/Scraptown | Visited Curators Association 5293 | -7/Scraptown | Visited Scrapoid Pod Storage 5299 | -7/Scraptown | Visited Scrapoid Research Area 5304 | -7/Scraptown | Visited Chapter 10 5317 | -7/Scraptown | Visited Derelict Rescue Squad 5330 | -7/Scraptown | Visited Junk Repository 5350 | -7/Scraptown | Visited A0-MCA Data Center 5503 | -7/Scraptown | Given a C- rating by A0-MCA 5507 | -7/Scraptown | Found A0-MCA's Component Scanner 5738 | -7/Scraptown | Met Optimus 5738 | -7/Scraptown | Accepted into 0bPrime 5809 | -7/Scraptown | Discovered new exit (range 5) 5815 | -7/Scraptown | Entered Factory 5815 | -5/Factory | Evolved 10 slots: Propulsion x3, Utility x7 6141 | -5/Factory | Build established: Hacker-Mutant 6396 | -5/Factory | Lost 3 parts (1n2w) 6696 | -5/Factory | Discovered new exit (range 13) 6934 | -5/Factory | Spotted B-75 Beast 7260 | -5/Factory | Core integrity fell below 50% 7307 | -5/Factory | Core integrity fell below 20% 7336 | -5/Factory | Lost 13 parts (1p2n8u2w) 7367 | -5/Factory | Destroyed by H-66 Slayer with Gauss Rifle Last Messages --------------- 07305_ Power Conduit explodes. 07305_ Y-64 Sentinel destroyed. 07305_ Imp. Medium Armor Plating destroyed. 07305_ K-01 Serf collects debris. 07306_ Penetrated by Slug. 07307_ P-70 Sage Antigrav System severed. 07309_ K-01 Serf collects debris. 07309_ Penetrated by Slug. 07313_ K-01 Serf collects debris. 07316_ Penetrated by Slug. 07320_ K-01 Serf cleans the Pressure Siphon. 07341_ SWGUMHA4%GD7CKOY7FFNFWE 07343_ O-24 Administrator: "IFF HANDSHAKE FAILED. SECURING TERMINAL." 07347_ ALERT: Hostiles spotted, dispatching reinforcements to Terminal F010. 07353_ Acquired Adv. Weight Redist. System. 07363_ System corrupted: Matter fused (-10). 07367_ Penetrated by Slug. Map ----- +----------------------------------------------------+ | ?????????????????????????????# #???????# " | | ?????????????????????????????# """ #???????# " | | ?????????????????????????????# """ #???????# " | | ?????##############??????????? """ #???????# " | | ?????# #????????????? ?????????# | | ?????# ################+############ " | | ?????# # " | | ?????# # " | | ?????# # """ " | | ?????# "" "" + """ | | ?????# "" "" # """ | | ?????# """ """ # #####+##### | | ?????# """ """ # """ #?? ??# | | ?????# """ """ # """^ # # | | ?????# ? ? # """ #"" """ # | | ?????#???? # #"" """ # | | ??????????######### """ #"Y """ # """"" | | ??????????????????# """ #"" "" # """"" | | ??????????????????# """ #"" "??# """ | | ???????????######?# p # ??# ???? | | ???????????? ?# """ #######???# "???? | | ??????????? """"" # """ #?????????? ????? ? | | ????????# ""T"" # """ #???????????????????? | | ????????# o/ #???????????????????? | | ????????# """ """ #t """ #???????????????????? | | ???????????"" """ # """ @ #???????????????????? | | ????????????" """?# """ #???????????????????? | | ???????????? ?# #???????????????????? | | ????????????####??# +??????????????????? | | ??????????????????# ####+##??????????????????? | | ??????????????????# #????????????????????????? | | ??????????????????# #????????????????????????? | | ??????????????????# #????????????????????????? | | ??????????????????# #????????????????????????? | | ??????????????????# #????????????????????????? | | ??????????????????# #????????????????????????? | | ??????????????????# #????????????????????????? | | ??????????????????# #????????????????????????? | | ??????????????????#h ?????????????????????????? | | ??????????????????? ??????????????????????????? | | ?????????????????????????????????????????????????? | | ?????????????????????????????????????????????????? | | ?????????????????????????????????????????????????? | | ?????????????????????????????????????????????????? | | ?????????????????????????????????????????????????? | | ?????????????????????????????????????????????????? | | ?????????????????????????????????????????????????? | | ?????????????????????????????????????????????????? | | ?????????????????????????????????????????????????? | | ?????????????????????????????????????????????????? | +----------------------------------------------------+ Best States ------------- Heat Dissipation 40 Energy Generation 19 Energy Capacity 200 Matter Stores 300 Matter Capacity 300 Sight Range 21 Robot Scan Range 15 Terrain Scan Range 16 Terrain Scan Density 10 ECM Strength 2 Additional Mass Support 9 Armor Coverage 450 Evasion (%) 63 Melee Accuracy 24 Recoil Reduction 2 Offensive Hacking 10 Defensive Hacking 10 Item Schematics ----------------- Railgun | -5/Factory | Hacked Robot Schematics ------------------ X-72 Disruptor | -5/Factory | Hacked Y-64 Sentinel | -5/Factory | Hacked Fabricated ------------ Nothing Repaired ---------- Nothing Studied --------- None Alien Tech Used ----------------- None Achievements -------------- None Challenges ------------ None Game ------ Seed ForceCannonRailgun Manual? 0 Play Time 01:52:14 Cumulative 373.6 hours Start 2026.08.01 @ 15:36:49 End 2026.08.01 @ 17:29:01 Sessions 1 Manual Loads 0 Difficulty Rogue Special Mode None Game No. 221 Rogue 147 Adventurer 74 Explorer 0 Win Type - Total 18 Types 15/0/0/3/0/0/0/0/0/0 Lore% 77 Gallery% 68 Achievement% 54 Wizard Run 0 Options --------- Layout 2 ASCII 0 Keyboard 0 Movement Mouse Keybinds 0 Fullscreen 1 Font 32/SmallcapsGlow Map View 50x44 Zoom Use 0% Tactical HUD 1 Map Filters NONE Filters NONE Steam 1 RUN: c276670f-a451-42b4-9bc6-277110b61616